[Event "EUCC Open Blitz 2024"]
[Site "Miskolc"]
[Date "2024.07.13"]
[Round "3.5"]
[White "Muha, Miljenko"]
[Black "Papp, Levente"]
[Result "0-1"]
[ECO "D31"]
[WhiteElo "2245"]
[BlackElo "2359"]
[PlyCount "144"]
[EventDate "2024.07.08"]
[EventType "team-tourn"]
[EventCountry "HUN"]
[TimeControl "1500+10"]

1. c4 {[%emt 0:22:17]} e6 {[%emt 0:22:17]} 2. d4 {[%emt 0:00:09]} d5 {[%emt 0:00:09]} 3. Nc3 {[%emt 0:00:09]} Bb4 {[%emt 0:00:09]} 4. e3 {[%emt 0:00:24]} Nf6 {[%emt 0:00:10]} 5. Bd2 {[%emt 0:00:10]} O-O {[%emt 0:00:15]} 6. Rc1 {[%emt 0:00:11]} b6 {[%emt 0:00:24]} 7. cxd5 {[%emt 0:00:15]} exd5 {[%emt 0:00:09]} 8. Bd3 {[%emt 0:00:10]} Bb7 {[%emt 0:00:13]} 9. Nf3 {[%emt 0:00:16]} Nbd7 {[%emt 0:00:14]} 10. Nb5 {[%emt 0:00:23]} Bxd2+ {[%emt 0:00:13]} 11. Qxd2 {[%emt 0:00:10]} c5 {[%emt 0:00:19]} 12. dxc5 {[%emt 0:00:19]} bxc5 {[%emt 0:00:18]} 13. Nd6 {[%emt 0:00:30]} Bc6 {[%emt 0:00:15]} 14. O-O {[%emt 0:00:13]} Qb6 {[%emt 0:00:22]} 15. Nf5 {[%emt 0:00:15]} Rfe8 {[%emt 0:00:16]} 16. b3 {[%emt 0:00:38]} d4 {[%emt 0:00:41]} 17. exd4 {[%emt 0:00:26]} Bxf3 {[%emt 0:00:10]} 18. gxf3 {[%emt 0:00:10]} cxd4 {[%emt 0:00:10]} 19. Qg5 {[%emt 0:00:16]} g6 {[%emt 0:00:19]} 20. Nh6+ {[%emt 0:00:13]} Kf8 {[%emt 0:00:16]} 21. Rfe1 {[%emt 0:00:22]} Qb4 {[%emt 0:00:15]} 22. Rxe8+ {[%emt 0:00:20]} Rxe8 {[%emt 0:00:09]} 23. Bc4 {[%emt 0:00:16]} Rc8 {[%emt 0:00:32]} 24. Rd1 {[%emt 0:00:11]} Rxc4 {[%emt 0:00:14]} 25. bxc4 {[%emt 0:00:09]} Qxc4 {[%emt 0:00:09]} 26. Qd2 {[%emt 0:00:11]} Ne5 {[%emt 0:00:10]} 27. Kg2 {[%emt 0:00:16]} Qc6 {[%emt 0:00:15]} 28. Qe2 {[%emt 0:00:15]} Qd5 {[%emt 0:00:17]} 29. h3 {[%emt 0:00:12]} Nh5 {[%emt 0:00:21]} 30. Qe4 {[%emt 0:00:09]} Qe6 {[%emt 0:00:15]} 31. Ng4 {[%emt 0:00:11]} Nc6 {[%emt 0:00:12]} 32. Qxe6 {[%emt 0:00:10]} fxe6 {[%emt 0:00:09]} 33. Rc1 {[%emt 0:00:16]} Nb4 {[%emt 0:00:09]} 34. Rc7 {[%emt 0:00:10]} d3 {[%emt 0:00:11]} 35. Rd7 {[%emt 0:00:13]} Nd5 {[%emt 0:00:10]} 36. Ne3 {[%emt 0:00:12]} Nhf4+ {[%emt 0:00:12]} 37. Kf1 {[%emt 0:00:10]} d2 {[%emt 0:00:11]} 38. Nd1 {[%emt 0:00:09]} h5 {[%emt 0:00:10]} 39. Rxa7 Nxh3 {[%emt 0:00:10]} 40. Ke2 {[%emt 0:00:18]} Nhf4+ {[%emt 0:00:09]} 41. Kxd2 {[%emt 0:00:09]} h4 {[%emt 0:00:09]} 42. Rh7 {[%emt 0:00:10]} h3 {[%emt 0:00:10]} 43. Ne3 {[%emt 0:00:09]} Kg8 {[%emt 0:00:10]} 44. Rh4 {[%emt 0:00:09]} g5 {[%emt 0:00:11]} 45. Rh6 {[%emt 0:00:16]} Kg7 {[%emt 0:00:09]} 46. Rxh3 {[%emt 0:00:10]} Nxh3 {[%emt 0:00:10]} 47. Nxd5 {[%emt 0:00:10]} exd5 48. a4 {[%emt 0:00:08]} Nf4 {[%emt 0:00:19]} 49. a5 {[%emt 0:00:09]} Ne6 {[%emt 0:00:09]} 50. a6 {[%emt 0:00:08]} Nc7 {[%emt 0:00:08]} 51. a7 {[%emt 0:00:09]} Kf6 {[%emt 0:00:09]} 52. Ke3 {[%emt 0:00:14]} Ke5 {[%emt 0:00:09]} 53. Kd3 {[%emt 0:00:09]} Kf4 {[%emt 0:00:16]} 54. Kd4 {[%emt 0:00:10]} Kxf3 {[%emt 0:00:10]} 55. Kc5 {[%emt 0:00:10]} Kxf2 {[%emt 0:00:10]} 56. Kc6 {[%emt 0:00:08]} Na8 {[%emt 0:00:10]} 57. Kb7 {[%emt 0:00:09]} d4 {[%emt 0:00:10]} 58. Kxa8 {[%emt 0:00:09]} d3 {[%emt 0:00:09]} 59. Kb8 d2 {[%emt 0:00:09]} 60. a8=Q {[%emt 0:00:19]} d1=Q {[%emt 0:00:11]} 61. Qa7+ {[%emt 0:00:13]} Kg3 {[%emt 0:00:11]} 62. Qc7+ {[%emt 0:00:09]} Kg4 {[%emt 0:00:10]} 63. Qc4+ {[%emt 0:00:10]} Kh3 {[%emt 0:00:12]} 64. Qc3+ {[%emt 0:00:10]} Kh4 {[%emt 0:00:10]} 65. Qh8+ {[%emt 0:00:09]} Kg3 {[%emt 0:00:15]} 66. Qe5+ {[%emt 0:00:10]} Kg4 {[%emt 0:00:12]} 67. Qe6+ {[%emt 0:00:11]} Kh4 {[%emt 0:00:09]} 68. Qe4+ {[%emt 0:00:12]} g4 {[%emt 0:00:09]} 69. Qh7+ {[%emt 0:00:11]} Kg3 {[%emt 0:00:09]} 70. Qc7+ {[%emt 0:00:10]} Kg2 {[%emt 0:00:09]} 71. Qc6+ {[%emt 0:00:13]} Qf3 {[%emt 0:00:09]} 72. Qc2+ {[%emt 0:00:09]} Kg3 {[%emt 0:00:10]} 0-1

[Event "EUCC Open Blitz 2024"]
[Site "Miskolc"]
[Date "2024.07.13"]
[Round "3.6"]
[White "Fodor, Balazs"]
[Black "Pavic, Filip"]
[Result "0-1"]
[ECO "A05"]
[WhiteElo "2247"]
[BlackElo "2248"]
[PlyCount "104"]
[EventDate "2024.07.08"]
[EventType "team-tourn"]
[EventCountry "HUN"]
[TimeControl "1500+10"]

1. Nf3 {[%emt 0:22:19]} Nf6 {[%emt 0:22:17]} 2. e3 {[%emt 0:00:09]} c5 {[%emt 0:00:14]} 3. c4 {[%emt 0:00:18]} Nc6 {[%emt 0:00:23]} 4. Nc3 {[%emt 0:00:09]} e6 {[%emt 0:00:16]} 5. b3 {[%emt 0:00:10]} g6 {[%emt 0:00:17]} 6. Bb2 {[%emt 0:00:09]} Bg7 {[%emt 0:00:09]} 7. Rc1 {[%emt 0:00:09]} O-O {[%emt 0:00:09]} 8. Be2 {[%emt 0:00:09]} b6 {[%emt 0:00:13]} 9. O-O {[%emt 0:00:10]} Bb7 {[%emt 0:00:11]} 10. d4 {[%emt 0:00:21]} d6 {[%emt 0:00:11]} 11. d5 {[%emt 0:00:17]} exd5 {[%emt 0:00:13]} 12. cxd5 {[%emt 0:00:21]} Nb8 {[%emt 0:00:17]} 13. Ne1 {[%emt 0:00:29]} a6 {[%emt 0:00:09]} 14. Bf3 {[%emt 0:00:13]} b5 {[%emt 0:00:17]} 15. g3 {[%emt 0:00:11]} Nbd7 {[%emt 0:00:11]} 16. Bg2 {[%emt 0:00:10]} Nb6 {[%emt 0:00:17]} 17. e4 {[%emt 0:00:13]} Nfd7 {[%emt 0:00:13]} 18. Qc2 {[%emt 0:00:22]} Re8 {[%emt 0:00:10]} 19. Nd3 {[%emt 0:00:17]} Rc8 {[%emt 0:00:32]} 20. Qb1 {[%emt 0:00:09]} Ne5 {[%emt 0:00:19]} 21. Nxe5 {[%emt 0:00:14]} Bxe5 {[%emt 0:00:09]} 22. Nd1 {[%emt 0:00:15]} c4 {[%emt 0:00:16]} 23. Bxe5 {[%emt 0:00:15]} Rxe5 {[%emt 0:00:09]} 24. Ne3 {[%emt 0:00:12]} c3 {[%emt 0:00:24]} 25. a3 {[%emt 0:00:20]} a5 {[%emt 0:00:28]} 26. f4 {[%emt 0:00:16]} Re8 {[%emt 0:00:10]} 27. f5 {[%emt 0:00:22]} b4 {[%emt 0:00:12]} 28. axb4 {[%emt 0:00:10]} axb4 {[%emt 0:00:09]} 29. Qc2 {[%emt 0:00:19]} Nd7 {[%emt 0:00:09]} 30. Ng4 {[%emt 0:00:20]} Qg5 {[%emt 0:00:15]} 31. Qe2 {[%emt 0:00:14]} Bxd5 {[%emt 0:00:13]} 32. h4 {[%emt 0:00:13]} Qd8 {[%emt 0:00:35]} 33. Qe3 {[%emt 0:00:11]} Bxb3 {[%emt 0:00:25]} 34. Qh6 {[%emt 0:00:10]} Qe7 {[%emt 0:00:10]} 35. Rb1 {[%emt 0:00:32]} Bc4 {[%emt 0:00:09]} 36. Rf2 {[%emt 0:00:11]} b3 {[%emt 0:00:09]} 37. Qc1 {[%emt 0:00:13]} c2 {[%emt 0:00:09]} 38. Rb2 {[%emt 0:00:10]} h5 {[%emt 0:00:10]} 39. Ne3 {[%emt 0:00:09]} Ne5 {[%emt 0:00:13]} 40. Nxc4 {[%emt 0:00:12]} Rxc4 {[%emt 0:00:12]} 41. Rxb3 {[%emt 0:00:08]} Rec8 {[%emt 0:00:12]} 42. f6 {[%emt 0:00:09]} Qf8 {[%emt 0:00:09]} 43. Bf1 {[%emt 0:00:10]} Rc3 {[%emt 0:00:10]} 44. Rxc3 {[%emt 0:00:09]} Rxc3 {[%emt 0:00:09]} 45. Rxc2 {[%emt 0:00:08]} Rxg3+ {[%emt 0:00:12]} 46. Rg2 {[%emt 0:00:11]} Rxg2+ {[%emt 0:00:11]} 47. Bxg2 Qd8 48. Qg5 {[%emt 0:00:22]} Ng4 {[%emt 0:00:18]} 49. Qb5 {[%emt 0:00:16]} Qxf6 {[%emt 0:00:09]} 50. Qe8+ {[%emt 0:00:09]} Kg7 {[%emt 0:00:09]} 51. Qa4 {[%emt 0:00:12]} Qf2+ {[%emt 0:00:09]} 52. Kh1 {[%emt 0:00:08]} Qe1+ {[%emt 0:00:09]} 0-1

[Event "EUCC Open Blitz 2024"]
[Site "Miskolc"]
[Date "2024.07.13"]
[Round "3.7"]
[White "Veiga, Jose Francisco R P N"]
[Black "Gharibyan, Mamikon"]
[Result "0-1"]
[ECO "C54"]
[WhiteElo "2385"]
[BlackElo "2492"]
[PlyCount "69"]
[EventDate "2024.07.08"]
[EventType "team-tourn"]
[EventCountry "HUN"]
[TimeControl "1500+10"]

1. e4 {[%emt 0:22:17]} e5 {[%emt 0:22:20]} 2. Nf3 {[%emt 0:00:10]} Nc6 {[%emt 0:00:09]} 3. Bc4 {[%emt 0:00:10]} Bc5 {[%emt 0:00:10]} 4. c3 {[%emt 0:00:09]} Nf6 {[%emt 0:00:09]} 5. d3 {[%emt 0:00:10]} d6 {[%emt 0:00:09]} 6. O-O {[%emt 0:00:12]} a5 {[%emt 0:00:10]} 7. Re1 {[%emt 0:00:20]} Ba7 {[%emt 0:00:14]} 8. Bb3 {[%emt 0:00:11]} O-O {[%emt 0:00:14]} 9. h3 {[%emt 0:00:10]} Ne7 {[%emt 0:00:20]} 10. Nbd2 {[%emt 0:00:10]} Ng6 {[%emt 0:00:10]} 11. Nf1 {[%emt 0:00:10]} Re8 {[%emt 0:00:43]} 12. Ng3 {[%emt 0:00:10]} c6 {[%emt 0:00:15]} 13. d4 {[%emt 0:00:13]} Be6 {[%emt 0:00:25]} 14. Be3 {[%emt 0:00:21]} Bxb3 {[%emt 0:00:17]} 15. axb3 {[%emt 0:00:12]} Qc7 {[%emt 0:01:02]} 16. Qc2 {[%emt 0:00:24]} h6 {[%emt 0:00:14]} 17. dxe5 {[%emt 0:00:26]} dxe5 {[%emt 0:00:15]} 18. Bxa7 {[%emt 0:00:11]} Rxa7 {[%emt 0:00:09]} 19. Red1 {[%emt 0:00:09]} Raa8 {[%emt 0:00:11]} 20. Rd2 {[%emt 0:00:13]} Rad8 {[%emt 0:00:15]} 21. Rad1 {[%emt 0:00:11]} Qb6 {[%emt 0:00:11]} 22. Rxd8 {[%emt 0:00:16]} Rxd8 {[%emt 0:00:09]} 23. Nd2 {[%emt 0:00:11]} Qc7 {[%emt 0:00:16]} 24. Nc4 {[%emt 0:00:13]} b5 {[%emt 0:00:09]} 25. Ne3 {[%emt 0:00:14]} Nf4 {[%emt 0:00:11]} 26. Ngf5 {[%emt 0:00:54]} h5 {[%emt 0:00:13]} 27. Kh2 {[%emt 0:00:44]} g6 {[%emt 0:00:09]} 28. Ng3 {[%emt 0:00:09]} Kg7 {[%emt 0:00:18]} 29. Ne2 {[%emt 0:00:12]} Nxe2 {[%emt 0:00:20]} 30. Qxe2 {[%emt 0:00:10]} Nxe4 {[%emt 0:00:13]} 31. Rxd8 {[%emt 0:00:15]} Qxd8 {[%emt 0:00:09]} 32. Nc4 {[%emt 0:00:10]} bxc4 {[%emt 0:00:15]} 33. Qxe4 {[%emt 0:00:09]} cxb3 {[%emt 0:00:09]} 34. Qxe5+ {[%emt 0:00:10]} Qf6 {[%emt 0:00:13]} 35. Qxa5 {[%emt 0:00:20]} 0-1

[Event "EUCC Open Blitz 2024"]
[Site "Miskolc"]
[Date "2024.07.13"]
[Round "3.8"]
[White "Manukyan, Artyom"]
[Black "Ribeiro, Rodrigo"]
[Result "1-0"]
[ECO "B23"]
[WhiteElo "2155"]
[BlackElo "2181"]
[PlyCount "55"]
[EventDate "2024.07.08"]
[EventType "team-tourn"]
[EventCountry "HUN"]
[TimeControl "1500+10"]

1. e4 {[%emt 0:22:18]} c5 {[%emt 0:22:16]} 2. Nc3 {[%emt 0:00:09]} e6 {[%emt 0:00:12]} 3. Nge2 {[%emt 0:00:09]} a6 {[%emt 0:00:09]} 4. g3 {[%emt 0:00:11]} b5 {[%emt 0:00:09]} 5. d3 {[%emt 0:00:10]} Bb7 {[%emt 0:00:10]} 6. Bg2 {[%emt 0:00:09]} Qc7 {[%emt 0:00:10]} 7. O-O {[%emt 0:00:10]} Nf6 {[%emt 0:00:09]} 8. f4 {[%emt 0:00:11]} Be7 {[%emt 0:00:14]} 9. h3 {[%emt 0:00:12]} d6 {[%emt 0:00:10]} 10. Be3 {[%emt 0:00:13]} Nc6 {[%emt 0:00:25]} 11. Qd2 {[%emt 0:00:11]} O-O {[%emt 0:00:11]} 12. g4 {[%emt 0:00:09]} Rad8 {[%emt 0:00:53]} 13. g5 {[%emt 0:00:09]} Nd7 {[%emt 0:00:09]} 14. f5 exf5 {[%emt 0:00:29]} 15. Nd5 {[%emt 0:00:34]} Qc8 {[%emt 0:00:14]} 16. exf5 {[%emt 0:00:09]} f6 {[%emt 0:00:09]} 17. g6 {[%emt 0:00:11]} Rfe8 {[%emt 0:00:20]} 18. Nef4 {[%emt 0:00:13]} Nf8 {[%emt 0:00:23]} 19. Qf2 {[%emt 0:00:24]} Qxf5 {[%emt 0:00:21]} 20. gxh7+ {[%emt 0:00:31]} Nxh7 {[%emt 0:00:21]} 21. h4 {[%emt 0:00:08]} Ne5 {[%emt 0:00:24]} 22. Bh3 {[%emt 0:00:35]} Ng4 {[%emt 0:00:15]} 23. Qg3 {[%emt 0:00:16]} Bxd5 {[%emt 0:00:16]} 24. Bxg4 {[%emt 0:00:13]} Qe5 {[%emt 0:00:09]} 25. Rae1 {[%emt 0:00:13]} Qxb2 {[%emt 0:00:16]} 26. Nxd5 {[%emt 0:00:12]} Qxa2 {[%emt 0:00:15]} 27. Be6+ {[%emt 0:00:10]} Kh8 {[%emt 0:00:08]} 28. Nf4 {[%emt 0:00:08]} 1-0

[Event "EUCC Open Blitz 2024"]
[Site "Miskolc"]
[Date "2024.07.13"]
[Round "3.9"]
[White "Gatineau, Yovann"]
[Black "Safar, Sandro"]
[Result "1-0"]
[ECO "A96"]
[WhiteElo "2414"]
[BlackElo "2220"]
[PlyCount "74"]
[EventDate "2024.07.08"]
[EventType "team-tourn"]
[EventCountry "HUN"]
[TimeControl "1500+10"]

1. d4 f5 2. g3 Nf6 3. Bg2 d6 4. Nf3 e6 5. O-O Be7 6. c4 O-O 7. Nc3 Ne4 8. Bd2 Qe8 9. Qc2 Nxd2 10. Qxd2 Qf7 11. Rfe1 f4 12. b4 a5 13. b5 Nd7 14. Rad1 Nb6 15. Qd3 fxg3 16. fxg3 e5 17. dxe5 Qxc4 18. Qxc4+ Nxc4 19. Nd5 Bd8 20. Rc1 c6 21. bxc6 bxc6 22. Rxc4 cxd5 23. Rcc1 Bb6+ 24. Kh1 Be3 25. Rcd1 dxe5 26. Nxe5 Bb7 27. Bxd5+ Bxd5+ 28. Rxd5 Rfd8 29. Red1 Rxd5 30. Rxd5 h6 31. Kg2 Bg5 32. h4 Bf6 33. Ng6 Kf7 34. h5 Ke6 35. Rb5 a4 36. Kf3 Rc8 37. Ra5 Rc4 1-0

[Event "EUCC Open Blitz 2024"]
[Site "Miskolc"]
[Date "2024.07.13"]
[Round "3.10"]
[White "Tomulic, Teo"]
[Black "Houhou, Alexandre"]
[Result "0-1"]
[ECO "C00"]
[WhiteElo "2346"]
[BlackElo "2148"]
[PlyCount "101"]
[EventDate "2024.07.08"]
[EventType "team-tourn"]
[EventCountry "HUN"]
[TimeControl "1500+10"]

1. e4 e6 2. d4 {[%emt 0:22:26]} d5 {[%emt 0:22:24]} 3. Bd3 {[%emt 0:00:10]} dxe4 {[%emt 0:00:13]} 4. Bxe4 {[%emt 0:00:09]} Nf6 {[%emt 0:00:09]} 5. Bf3 {[%emt 0:00:09]} c5 {[%emt 0:00:09]} 6. Ne2 {[%emt 0:00:12]} Nbd7 {[%emt 0:00:35]} 7. Nbc3 {[%emt 0:00:13]} a6 {[%emt 0:00:31]} 8. Be3 {[%emt 0:00:11]} cxd4 9. Nxd4 {[%emt 0:00:20]} Ne5 {[%emt 0:00:24]} 10. Be2 {[%emt 0:00:37]} Bb4 {[%emt 0:00:10]} 11. O-O {[%emt 0:00:10]} O-O {[%emt 0:00:15]} 12. Bg5 {[%emt 0:00:20]} h6 {[%emt 0:00:09]} 13. Bh4 {[%emt 0:00:09]} Ng6 {[%emt 0:00:19]} 14. Bg3 {[%emt 0:00:13]} Bxc3 {[%emt 0:00:16]} 15. bxc3 {[%emt 0:00:09]} Ne4 {[%emt 0:00:08]} 16. Bf3 {[%emt 0:00:38]} Nxc3 {[%emt 0:00:44]} 17. Qd3 {[%emt 0:00:08]} Nd5 {[%emt 0:00:10]} 18. Rad1 {[%emt 0:00:23]} Qf6 {[%emt 0:00:13]} 19. c4 {[%emt 0:00:16]} Ndf4 {[%emt 0:00:11]} 20. Qe3 {[%emt 0:00:10]} e5 {[%emt 0:00:12]} 21. Nc2 {[%emt 0:00:19]} Be6 {[%emt 0:00:09]} 22. Bxb7 {[%emt 0:00:21]} Bxc4 {[%emt 0:00:43]} 23. Rfe1 {[%emt 0:00:22]} Rab8 {[%emt 0:00:18]} 24. Be4 {[%emt 0:00:11]} Bxa2 {[%emt 0:00:14]} 25. Qa3 {[%emt 0:00:30]} Bc4 {[%emt 0:00:14]} 26. Ne3 {[%emt 0:00:08]} Bb5 {[%emt 0:00:18]} 27. Nf5 {[%emt 0:00:12]} Rfd8 28. Kh1 {[%emt 0:00:22]} Rxd1 {[%emt 0:00:28]} 29. Rxd1 {[%emt 0:00:08]} Rd8 {[%emt 0:00:08]} 30. Re1 {[%emt 0:00:09]} Nd3 {[%emt 0:00:13]} 31. Rb1 {[%emt 0:00:16]} Ndf4 {[%emt 0:00:17]} 32. h4 {[%emt 0:00:09]} h5 {[%emt 0:00:10]} 33. Qf3 {[%emt 0:00:15]} Be2 {[%emt 0:00:10]} 34. Qe3 {[%emt 0:00:10]} Bd3 {[%emt 0:00:11]} 35. Rb6 {[%emt 0:00:11]} Bxe4 {[%emt 0:00:09]} 36. Rxf6 {[%emt 0:00:10]} Rd1+ {[%emt 0:00:10]} 37. Kh2 {[%emt 0:00:09]} Bxg2 {[%emt 0:00:11]} 38. Bxf4 {[%emt 0:00:15]} Nxf4 {[%emt 0:00:08]} 39. Qxf4 {[%emt 0:00:14]} exf4 {[%emt 0:00:09]} 40. Rxa6 {[%emt 0:00:09]} f3 {[%emt 0:00:10]} 41. Ne3 {[%emt 0:00:11]} Rh1+ {[%emt 0:00:09]} 42. Kg3 {[%emt 0:00:09]} Rh3+ {[%emt 0:00:09]} 43. Kf4 {[%emt 0:00:08]} Rxh4+ {[%emt 0:00:09]} 44. Kg5 {[%emt 0:00:10]} Rh1 {[%emt 0:00:12]} 45. Nd5 {[%emt 0:00:14]} Rg1 {[%emt 0:00:12]} 46. Kxh5 Bf1 {[%emt 0:00:09]} 47. Ra7 Kh7 48. Rxf7 {[%emt 0:00:31]} Bd3 {[%emt 0:00:20]} 49. Rxf3 {[%emt 0:00:11]} Be2 {[%emt 0:00:09]} 50. Kh4 Bxf3 51. Nf4 0-1

[Event "EUCC Open Blitz 2024"]
[Site "Miskolc"]
[Date "2024.07.13"]
[Round "3.11"]
[White "Pribelszky, Bence"]
[Black "Medve, Mark"]
[Result "0-1"]
[ECO "A01"]
[WhiteElo "2363"]
[BlackElo "2123"]
[PlyCount "82"]
[EventDate "2024.07.08"]
[EventType "team-tourn"]
[EventCountry "HUN"]
[TimeControl "1500+10"]

1. b3 {[%emt 0:22:17]} e5 {[%emt 0:22:24]} 2. Bb2 {[%emt 0:00:09]} Nc6 {[%emt 0:00:10]} 3. e3 {[%emt 0:00:09]} Nf6 {[%emt 0:00:10]} 4. Bb5 {[%emt 0:00:10]} Bd6 {[%emt 0:00:10]} 5. Na3 {[%emt 0:00:09]} Na5 {[%emt 0:00:09]} 6. Be2 {[%emt 0:00:12]} a6 {[%emt 0:00:15]} 7. c4 {[%emt 0:00:09]} Nc6 {[%emt 0:00:18]} 8. Nc2 {[%emt 0:00:10]} O-O {[%emt 0:00:18]} 9. Nf3 {[%emt 0:00:10]} Re8 {[%emt 0:00:10]} 10. O-O {[%emt 0:00:10]} Bf8 {[%emt 0:00:32]} 11. d4 {[%emt 0:00:13]} e4 {[%emt 0:00:13]} 12. Nd2 {[%emt 0:00:09]} d5 {[%emt 0:00:11]} 13. Ba3 {[%emt 0:00:24]} Bxa3 {[%emt 0:00:12]} 14. Nxa3 {[%emt 0:00:09]} Qe7 {[%emt 0:00:15]} 15. Nc2 {[%emt 0:00:11]} Bf5 {[%emt 0:00:26]} 16. Rc1 {[%emt 0:00:25]} Rad8 {[%emt 0:00:11]} 17. h3 {[%emt 0:00:58]} Qe6 {[%emt 0:00:15]} 18. b4 {[%emt 0:01:23]} h6 {[%emt 0:00:41]} 19. a4 {[%emt 0:00:13]} Ne7 {[%emt 0:00:10]} 20. f3 {[%emt 0:00:19]} exf3 {[%emt 0:00:14]} 21. Rxf3 {[%emt 0:00:09]} Ne4 {[%emt 0:00:16]} 22. Nxe4 {[%emt 0:00:26]} Bxe4 {[%emt 0:00:10]} 23. Rg3 {[%emt 0:00:12]} Qd6 {[%emt 0:00:17]} 24. Qe1 {[%emt 0:00:10]} Nf5 {[%emt 0:00:12]} 25. Rg4 {[%emt 0:00:10]} Bxc2 {[%emt 0:00:13]} 26. Rxc2 {[%emt 0:00:11]} Nxe3 {[%emt 0:00:09]} 27. Rc3 {[%emt 0:00:10]} Nxg4 {[%emt 0:00:10]} 28. hxg4 {[%emt 0:00:10]} dxc4 {[%emt 0:00:13]} 29. Kf1 {[%emt 0:00:10]} Qxd4 {[%emt 0:00:11]} 30. Rf3 {[%emt 0:00:10]} Qxg4 {[%emt 0:00:19]} 31. Rxf7 {[%emt 0:00:10]} Qxe2+ {[%emt 0:00:11]} 32. Qxe2 {[%emt 0:00:10]} Rxe2 {[%emt 0:00:10]} 33. Rxc7 {[%emt 0:00:09]} Rdd2 {[%emt 0:00:09]} 34. Rc8+ {[%emt 0:00:10]} Kh7 {[%emt 0:00:09]} 35. Rxc4 {[%emt 0:00:10]} Rf2+ {[%emt 0:00:09]} 36. Ke1 {[%emt 0:00:09]} Rde2+ {[%emt 0:00:09]} 37. Kd1 {[%emt 0:00:09]} Ra2 {[%emt 0:00:09]} 38. Ke1 {[%emt 0:00:12]} Rxg2 {[%emt 0:00:09]} 39. Kf1 {[%emt 0:00:09]} Rgf2+ {[%emt 0:00:10]} 40. Kg1 {[%emt 0:00:09]} Rfb2 {[%emt 0:00:09]} 41. Rc1 {[%emt 0:00:09]} Rxb4 {[%emt 0:00:09]} 0-1

[Event "EUCC Open Blitz 2024"]
[Site "Miskolc"]
[Date "2024.07.13"]
[Round "3.12"]
[White "Kovacs, Gabor Etele"]
[Black "Vodila, Martin Botond"]
[Result "0-1"]
[ECO "B01"]
[WhiteElo "2109"]
[BlackElo "2236"]
[PlyCount "136"]
[EventDate "2024.07.08"]
[EventType "team-tourn"]
[EventCountry "HUN"]
[TimeControl "1500+10"]

1. e4 {[%emt 0:22:18]} d5 {[%emt 0:22:16]} 2. exd5 {[%emt 0:00:13]} Nf6 {[%emt 0:00:09]} 3. d4 {[%emt 0:00:10]} Nxd5 {[%emt 0:00:09]} 4. c4 {[%emt 0:00:10]} Nf6 {[%emt 0:00:09]} 5. Nc3 {[%emt 0:00:09]} c6 {[%emt 0:00:10]} 6. Nf3 {[%emt 0:00:13]} Bg4 {[%emt 0:00:09]} 7. Be3 {[%emt 0:00:12]} e6 {[%emt 0:00:09]} 8. h3 {[%emt 0:00:09]} Bh5 {[%emt 0:00:09]} 9. g4 {[%emt 0:00:38]} Bg6 {[%emt 0:00:09]} 10. Bg2 {[%emt 0:00:08]} Bb4 {[%emt 0:00:13]} 11. O-O {[%emt 0:00:12]} O-O {[%emt 0:00:22]} 12. Ne5 {[%emt 0:00:10]} Nbd7 {[%emt 0:00:16]} 13. Nxg6 {[%emt 0:00:14]} hxg6 {[%emt 0:00:10]} 14. Qf3 {[%emt 0:00:12]} Nb6 {[%emt 0:00:28]} 15. Qe2 {[%emt 0:00:17]} Qc7 {[%emt 0:00:14]} 16. Rfd1 {[%emt 0:00:15]} Rfd8 {[%emt 0:00:11]} 17. Bg5 {[%emt 0:00:18]} Rd7 {[%emt 0:00:32]} 18. Bxf6 {[%emt 0:00:13]} gxf6 {[%emt 0:00:10]} 19. Ne4 {[%emt 0:00:08]} Be7 {[%emt 0:00:12]} 20. b3 {[%emt 0:00:10]} Qf4 {[%emt 0:00:12]} 21. Qe3 {[%emt 0:00:16]} Qxe3 {[%emt 0:00:12]} 22. fxe3 {[%emt 0:00:10]} Rad8 {[%emt 0:00:12]} 23. Rf1 {[%emt 0:00:09]} f5 {[%emt 0:00:10]} 24. Ng3 {[%emt 0:00:17]} fxg4 {[%emt 0:00:18]} 25. hxg4 {[%emt 0:00:09]} c5 {[%emt 0:00:20]} 26. Ne2 {[%emt 0:00:44]} Bg5 {[%emt 0:00:11]} 27. Kf2 {[%emt 0:00:12]} Nc8 {[%emt 0:00:32]} 28. d5 {[%emt 0:00:18]} exd5 {[%emt 0:00:19]} 29. Bxd5 {[%emt 0:00:09]} Ne7 {[%emt 0:00:14]} 30. e4 {[%emt 0:00:09]} Kg7 {[%emt 0:00:11]} 31. Kg2 {[%emt 0:00:12]} Nc6 {[%emt 0:00:25]} 32. Rad1 {[%emt 0:00:24]} Ne5 {[%emt 0:00:10]} 33. Kg3 {[%emt 0:00:10]} b6 {[%emt 0:00:13]} 34. Nc3 {[%emt 0:00:10]} Rh8 {[%emt 0:00:14]} 35. Rh1 {[%emt 0:00:10]} Rdd8 {[%emt 0:00:10]} 36. Nb5 {[%emt 0:00:14]} Rd7 {[%emt 0:00:18]} 37. Rxh8 {[%emt 0:00:14]} Kxh8 {[%emt 0:00:09]} 38. a4 {[%emt 0:00:14]} Kg7 {[%emt 0:00:10]} 39. Rf1 {[%emt 0:00:10]} Bd2 {[%emt 0:00:17]} 40. Rd1 {[%emt 0:00:09]} Bg5 {[%emt 0:00:10]} 41. Rf1 {[%emt 0:00:09]} Bd2 {[%emt 0:00:12]} 42. Rd1 {[%emt 0:00:11]} Bb4 {[%emt 0:00:10]} 43. Rf1 {[%emt 0:00:12]} a6 {[%emt 0:00:11]} 44. Kf4 {[%emt 0:00:25]} f6 {[%emt 0:00:13]} 45. g5 {[%emt 0:00:19]} axb5 {[%emt 0:00:13]} 46. axb5 {[%emt 0:00:09]} Bd2+ {[%emt 0:00:09]} 47. Kg3 {[%emt 0:00:10]} Bxg5 {[%emt 0:00:11]} 48. Ra1 {[%emt 0:00:09]} Bd2 {[%emt 0:00:10]} 49. Ra8 {[%emt 0:00:09]} f5 {[%emt 0:00:09]} 50. exf5 {[%emt 0:00:12]} gxf5 {[%emt 0:00:09]} 51. Rb8 {[%emt 0:00:09]} f4+ {[%emt 0:00:10]} 52. Kf2 {[%emt 0:00:09]} Be3+ {[%emt 0:00:09]} 53. Kf1 {[%emt 0:00:09]} Rd6 {[%emt 0:00:09]} 54. Rg8+ {[%emt 0:00:10]} Kf6 {[%emt 0:00:09]} 55. Rf8+ {[%emt 0:00:09]} Kg5 {[%emt 0:00:09]} 56. Ke2 {[%emt 0:00:11]} Bc1 {[%emt 0:00:11]} 57. Be4 {[%emt 0:00:11]} Rf6 {[%emt 0:00:15]} 58. Rg8+ {[%emt 0:00:09]} Kh6 {[%emt 0:00:09]} 59. Re8 {[%emt 0:00:11]} Bb2 {[%emt 0:00:11]} 60. Rh8+ {[%emt 0:00:09]} Kg7 {[%emt 0:00:09]} 61. Rb8 {[%emt 0:00:10]} f3+ {[%emt 0:00:13]} 62. Kf1 {[%emt 0:00:13]} Bd4 {[%emt 0:00:09]} 63. Bd5 {[%emt 0:00:09]} f2 {[%emt 0:00:10]} 64. Rg8+ {[%emt 0:00:11]} Kh6 {[%emt 0:00:09]} 65. Rh8+ {[%emt 0:00:17]} Kg5 {[%emt 0:00:10]} 66. Rg8+ {[%emt 0:00:10]} Rg6 {[%emt 0:00:10]} 67. Rf8 {[%emt 0:00:11]} Kh6 {[%emt 0:00:16]} 68. Rf4 {[%emt 0:00:09]} Rg1+ {[%emt 0:00:10]} 0-1